Cogmind - Beta 12 @@@ ROGUE MODE // 2023.03.09 @ 01:17:28 Player: Sussy Jin Result: Destroyed by S-10 Pest with Light Assault Rifle Performance ------------- Evolutions (0) 0 Regions Visited (1) 200 Robots Destroyed (8) 40 Value Destroyed (220) 220 Prototype IDs (2) 40 Alien Tech Used (0) 0 Bonus (0) 0 TOTAL SCORE: 500 Bonus ------- None Cogmind --------- Core Integrity 0/250 Matter 263/300 Energy 210/400 System Corruption 0% Temperature Cool (0) Movement Core (150) Ox2 Location -10/Materials Parts ------- > --- POWER (1) -------- Ion Engine > --- PROPULSION (2) --- (None) > --- UTILITY (2) ------ Medium Battery Structural Scanner > --- WEAPON (2) ------- Light Assault Rifle > --- INVENTORY (5) ---- Small Storage Unit Peak State ------------ > --- POWER ------------ Light Ion Engine > --- PROPULSION ------- Aluminum Leg Aluminum Leg > --- UTILITY ---------- Small Storage Unit Structural Scanner > --- WEAPON ----------- Beam Cannon Assault Rifle > --- INVENTORY -------- Ion Engine Small Laser Light Assault Rifle [Rating: 7] Favorites ----------- Power Light Ion Engine Engine Light Ion Engine Propulsion Aluminum Leg Treads Light Treads Leg Aluminum Leg Utility Structural Scanner Device Structural Scanner Storage Small Storage Unit Protection Light Armor Plating Weapon Small Laser Energy Gun Small Laser Energy Cannon Beam Cannon Ballistic Gun Assault Rifle Build | -11 -10 ------- Run | Jun Mat Slots Evolved . | . . Power . | . . Propulsion . | . . Utility . | . . Weapon . | . . Parts Attached 30 | 5 25 Power 7 | 1 6 Engine 7 | 1 6 Core . | . . Reactor . | . . Propulsion 7 | 2 5 Treads 2 | . 2 Leg 5 | 2 3 Wheel . | . . Hover . | . . Flight . | . . Utility 5 | . 5 Device 1 | . 1 Storage 2 | . 2 Processor . | . . Hackware . | . . Protection 2 | . 2 Artifact . | . . Weapon 11 | 2 9 Energy Gun 5 | 1 4 Energy Cannon 2 | . 2 Ballistic Gun 4 | 1 3 Ballistic Cannon . | . . Launcher . | . . Special Weapon . | . . Impact Weapon . | . . Slashing Weapon . | . . Piercing Weapon . | . . Special Melee Weapon . | . . Unidentified Prototypes . | . . Parts Lost 7 | . 7 Power 2 | . 2 Propulsion 1 | . 1 Utility 1 | . 1 Weapon 3 | . 3 Highest Loss Streak 6 | . 6 To Critical Strikes . | . . Average Slot Usage (%) 79 | . 79 Engine 13 | . 13 Treads 5 | . 5 Leg 10 | . 10 Device 13 | . 13 Storage 6 | . 6 Protection 4 | . 4 Energy Gun 12 | . 12 Energy Cannon 3 | . 3 Ballistic Gun 8 | . 8 Naked Turns . | . . Heaviest Build 15 | 6 15 Greatest Support 20 | 20 20 Greatest Overweight (x) 4 | . 4 Average Overweight (x) . | . . Largest Inventory Capacity 8 | 5 8 Average Capacity 6 | 5 6 Most Carried 8 | 3 8 Average Carried 4 | 1 4 Final Capacity 5 | 5 5 Final Carried 2 | 2 1 Class Distribution -------------------- 100% | Mutant Dominant Class ---------------- Mutant | -10/Materials Resources | -11 -10 ----------- Run | Jun Mat Matter Collected 462 | 253 209 Remotely . | . . Salvage Created 258 | 48 210 Parts 13 | 1 12 Haulers Intercepted . | . . Recyclers Shooed . | . . Parts Field Recycled . | . . Retrieved Matter . | . . Parts Self-Destructed . | . . Prevented . | . . Kills | -11 -10 ------- Run | Jun Mat Combat Hostiles Destroyed 8 | 1 7 Guns 6 | 1 5 Cannons 2 | . 2 Classes Destroyed 2 | 1 1 Swarmer 3 | . 3 Grunt 5 | 1 4 Best Kill Streak 2 | 1 2 Combat Bots Only 2 | 1 2 Max Kills in Single Turn 1 | 1 1 Gunslinging . | . . Exploded . | . . Melee . | . . Uniques/NPCs Destroyed . | . . Combat | -11 -10 -------- Run | Jun Mat Damage Taken 964 | 10 954 Core 257 | . 257 Absorbed by Shields . | . . Core Remaining (%) 100 | 100 . Volleys Fired 36 | 1 35 Largest 2 | 2 2 Hottest 80 | 60 80 Shots Fired 59 | 2 57 Gun 51 | 2 49 Cannon 8 | . 8 Launcher . | . . Special . | . . Kinetic 12 | 1 11 Thermal 39 | 1 38 Explosive . | . . Electromagnetic 8 | . 8 Robot Hit Streak 7 | 2 7 Robot Miss Streak 8 | . 8 Penetration Max . | . . Secondary Targets 1 | . 1 Max Gunslinging Chain 1 | . 1 Shots Hit Robots 28 | 2 26 Core Hits 12 | 2 10 Critical Kills . | . . Critical Parts Destroyed . | . . Critical Strikes . | . . Melee Attacks . | . . Impact . | . . Slashing . | . . Piercing . | . . Sneak Attacks . | . . Combat Hostiles . | . . Follow-up Attacks . | . . Damage Inflicted 353 | 25 328 Guns 315 | 25 290 Cannons 35 | . 35 Explosions . | . . Melee . | . . Ramming 3 | . 3 Kinetic 102 | 13 89 Thermal 200 | 12 188 Explosive . | . . Electromagnetic 48 | . 48 Impact . | . . Slashing . | . . Piercing . | . . Highest Corruption . | . . Average Corruption . | . . Corruption Purged . | . . Corruption Blocked . | . . Overload Shots . | . . Overflow Damage . | . . Projectiles . | . . Explosions . | . . Melee . | . . Knockbacks . | . . Impact . | . . Kinetic . | . . Secondary . | . . Self-Inflicted Damage . | . . Shots . | . . Rammed 1 | . 1 Targets Rammed 1 | . 1 Kicked . | . . Crushed . | . . Highest Temperature 388 | 2 388 Average Temperature 158 | 2 159 Received Heat Transfer 408 | 6 402 Effects 5 | . 5 Shutdowns 1 | . 1 Energy Bleed 2 | . 2 Short Circuit 2 | . 2 Siege Activations . | . . Robots Corrupted . | . . Combat Hostiles . | . . Parts Fried . | . . Impact Corruptions . | . . Robots Melted . | . . Combat Hostiles . | . . Parts Melted 1 | . 1 Heat Transferred 449 | 25 424 Parts Sabotaged . | . . Parts Stolen . | . . Parts Stripped . | . . Power Chain Reactions . | . . Missiles Intercepted . | . . Alert | -11 -10 ------- Run | Jun Mat Peak Influence 168 | 20 168 Initial 13 | . 13 Average 58 | 3 66 Maximum Alert Level . | . . Low Security (%) 100 | 100 100 Level 1 . | . . Level 2 . | . . Level 3 . | . . Level 4 . | . . Level 5 . | . . High Security . | . . Max Security . | . . Squads Dispatched 2 | . 2 Investigation 2 | . 2 Extermination . | . . Reinforcement . | . . Assault . | . . Garrison . | . . Intercept . | . . Searches Triggered . | . . Construction Impeded . | . . Haulers Reinforced . | . . Active Scanning Responses . | . . Cargo Convoy Interrupts . | . . Stealth | -11 -10 --------- Run | Jun Mat Distress Signals 2 | . 2 Communications Jammed . | . . Distress Signals . | . . Times Spotted 19 | 1 18 Peak Tracking Total 6 | 1 6 Tactical Retreats . | . . Traps | -11 -10 ------- Run | Jun Mat Traps Triggered 6 | . 6 Indirectly . | . . Trap Hack Attempts . | . . Triggered . | . . Disarmed . | . . Reprogrammed . | . . Reused . | . . Traps Extracted . | . . Installed . | . . Triggered . | . . Machines | -11 -10 ---------- Run | Jun Mat Machines Disabled 2 | . 2 Max in Single Turn 1 | . 1 Machines Repaired . | . . Machines Sabotaged . | . . Overloaded Fab Kills . | . . Hacking | -11 -10 --------- Run | Jun Mat Machines Accessed 4 | . 4 Terminals 3 | . 3 Fabricators . | . . Repair Stations . | . . Recycling Units 1 | . 1 Scanalyzers . | . . Garrison Access . | . . Total Hacks 17 | . 17 Successful 8 | . 8 Failed 9 | . 9 Catastrophic . | . . Database Lockouts . | . . Manual . | . . Terminals 8 | . 8 Fabricators . | . . Repair Stations . | . . Recycling Units 9 | . 9 Scanalyzers . | . . Garrison Access . | . . Terminal Hacks 4 | . 4 Record 1 | . 1 Robot Analysis 1 | . 1 Prototype ID Bank 1 | . 1 Alert Level 1 | . 1 Fabricator Hacks . | . . Repair Station Hacks . | . . Recycling Unit Hacks 4 | . 4 Process 1 | . 1 Report Inventory 1 | . 1 Retrieve Matter 1 | . 1 Retrieve Components 1 | . 1 Scanalyzer . | . . Garrison Access Hacks . | . . Unauthorized Hacks . | . . Terminals . | . . Fabricators . | . . Repair Stations . | . . Recycling Units . | . . Scanalyzers . | . . Garrison Access . | . . Data Cores Recovered . | . . Used . | . . Hacking Detections 3 | . 3 Full Trace Events 3 | . 3 Feedback Events . | . . Feedback Blocked . | . . Robot Schematics Acquired . | . . Robots Built . | . . Authchips . | . . Time . | . . Total Robot Build Rating . | . . Part Schematics Acquired . | . . Parts Built . | . . Authchips . | . . Time . | . . Total Part Build Rating . | . . Parts Repaired . | . . Time . | . . Parts Recycled . | . . Recycled Matter . | . . Retrieved Matter . | . . Retrieved Components . | . . Parts Scanalyzed . | . . Part Schematics Acquired . | . . Parts Damaged . | . . Bothacking | -11 -10 ------------ Run | Jun Mat Used RIF Installer . | . . Robots Hacked . | . . Non-combat . | . . Combat . | . . Robot Hacks Applied . | . . Relay Couplers Released . | . . Fabnet Peak Effective % . | . . Robots Rewired . | . . Allies Hacked . | . . Hacks Repelled . | . . Allies | -11 -10 -------- Run | Jun Mat Total Allies . | . . Largest Group . | . . Highest-Rated Group . | . . Highest-Rated Ally . | . . Total Orders . | . . Ally Attacks . | . . Total Damage . | . . Kills . | . . Allies Corrupted . | . . Allies Melted . | . . Intel | -11 -10 ------- Run | Jun Mat Robot Analysis Total 1 | . 1 Derelict Logs Recovered . | . . Drone Launches . | . . Drone Recoveries . | . . Exploration | -11 -10 ------------- Run | Jun Mat Turns Passed 679 | 89 590 Spaces Moved 375 | 79 296 Core 71 | 28 43 Treads 94 | . 94 Legs 210 | 51 159 Wheels . | . . Hover . | . . Flight . | . . Fastest Speed 50 | 50 50 Average Speed 136 | 95 148 Slowest Speed 250 | 120 250 Overloaded Moves . | . . Propulsion Burnouts . | . . Robots Hopped . | . . Cave-ins Triggered . | . . Exploration Rate (%) 19 | 6 33 Regions Visited 1 Branch Regions . Pre-discovered Areas . | . . Known Exits Taken . | . . Unknown Exits Taken 1 | 1 . Scrap Searched . | . . Spaces Dug . | . . Terrain Destroyed . | . . Melee . | . . Projectile . | . . AOE . | . . Terrain Rammed . | . . Walls Destroyed . | . . Machines Disabled . | . . Actions | -11 -10 --------- Run | Jun Mat Total 481 | 91 390 Wait 3 | . 3 Move 374 | 78 296 Hop . | . . Pick Up 29 | 7 22 Fast Attach . | . . Attach 22 | 5 17 Detach . | . . Swap 8 | . 8 Drop 8 | . 8 Fire 36 | 1 35 Melee . | . . Ram . | . . Kick . | . . Crush 1 | . 1 Escape Stasis . | . . Rewire . | . . Trap . | . . Miscellaneous . | . . Route ------- -11/Junkyard -10/Materials (discovered 1 exit: [*Min]) History --------- Turn | Location | Event 2 | -11/Junkyard | Met Revision 17 65 | -11/Junkyard | Discovered new exit (range 8) 90 | -11/Junkyard | Entered Materials 310 | -10/Materials | Build established: Mutant 461 | -10/Materials | Discovered new exit (range 16) 642 | -10/Materials | Core integrity fell below 50% 674 | -10/Materials | Core integrity fell below 20% 680 | -10/Materials | Destroyed by S-10 Pest with Light Assault Rifle Last Messages --------------- Overheating: Short circuit. K-01 Serf cleans the Processing Tank. Acquired 35 matter. Overheating: Energy bleed (-58). Acquired 41 matter. K-01 Serf collects debris. K-01 Serf cleans the Terminal. K-01 Serf collects debris. O-16 Technician: "IFF HANDSHAKE FAILED. SECURING TERMINAL." K-01 Serf collects debris. Processing Tank disabled. K-01 Serf collects debris. EM Pulse Gun destroyed. Lgt. Treads destroyed. Broken Sml. Laser destroyed. Ion Engine destroyed. G-34 Mercenary IFF system glitched. S-10 Pest destroyed. Acquired Lgt. Assault Rifle. K-01 Serf collects debris. Map ----- +----------------------------------------------------+ | | | | | | | | | | | | | | | | | ????????????????????????????????????????????????? | | ????????????????????????????????????????????????? | | ????????????????????????????????????????????????? | | ????????????????????????????????????????????????? | | ????????????????????????????????????????????????? | | ????????????????????????????????????????????????? | | ????????????????????????????????????????????????? | | ????????????????????????????????????????????????? | | ???????????#######??????????????????????????????? | | ??????????#########?????????????????????????????? | | ?????????####"""####????????????????????????????? | | ?????????###"!!!"###????????????????????????????? | | ?????????##"" ""#########??????#??????????????? | | ?????????## ## #???? ##?????????????? | | ?????????## < ## ### ##????????????? | | ?????????## ## s=st ?????? | | ?????????## ## g%*### ?????? | | ????######## ### @ ##??? ?????? | | ????######### #### kk ### ########??????? | | ????## # ##T####/############ ???????? | | ????## """ + o #??????? | | ????## """ # #??????? | | ????## """ # #??????? | | ????## # """ ############/## ???????? | | ????## | # """ ######### ??????????????? | | ????######### """= ######### ?????????????????? | | ????######### "" ######### ?????????????????? | | ??????????### """ =## # ?????????????????? | | ??????????## [ ##" """ # ?????????????????? | | ???######### ##T """ # ?????????????????? | | ???######### """ ##" """ # ?????????????????? | | ???## != # """ =## # ?????????????????? | | ???## = # "" = ## """ # ?????????????????? | | ???## = + "" * ## """ # ?????????????????? | | ???## [# """ ## """ # ?????????????????? | | ???## [=# *## # ?????????????????? | | ???## =]## # """ ##?????????????????? | | ???########## """ + """ ##?????????????????? | | ???### """*=+ """ = # """ ##?????????????????? | | ????## """[%# """ # ##?????????????????? | | ????## """ [+ """ ########## ??????????????? | | ????## =## """ ###########??????????????? | +----------------------------------------------------+ Best States ------------- Heat Dissipation 25 Energy Generation 10 Energy Capacity 400 Matter Stores 300 Matter Capacity 300 Sight Range 16 Terrain Scan Density 10 Armor Coverage 150 Evasion (%) 55 Recoil Reduction 1 Item Schematics ----------------- None Robot Schematics ------------------ None Fabricated ------------ Nothing Alien Tech Used ----------------- None Achievements -------------- None Challenges ------------ None Game ------ Seed CarbideTachyonCycler Manual? 0 Play Time 00:08:03 Cumulative 1.6 hours Start 2023.03.09 @ 01:11:21 End 2023.03.09 @ 01:17:28 Sessions 1 Manual Loads 0 Difficulty Rogue Special Mode None Game No. 3 Rogue 3 Adventurer 0 Explorer 0 Win Type - Total 0 Types 0/0/0/0/0/0/0/0/0 Lore% 1 Gallery% 5 Achievement% 6 Wizard Run 0 Options --------- ASCII 0 Keyboard 0 Movement Arrows Keybinds 0 Fullscreen 2 Font 18/TerminusBold Map View 76x50 Tactical HUD 0 Map Filters NONE Filters NONE Steam 1 RUN: 441d8533-420e-4a17-8bc7-a8fe88ed37f4